bitfinex/quotes_ETHUSD_20250411
["timestamp","ask_amount","ask_price","bid_price","bid_amount"]
[1744379991270,8.835,1570.1,1570.0,0.59293616]
[1744379991475,8.835,1570.1,1570.0,1.06334256]
[1744379991670,0.05,1570.4,1570.0,1.06334256]
[1744379991865,5.3255,1570.4,1570.0,1.06334256]
[1744379992101,5.3255,1570.4,1570.1,0.59293616]
[1744379992791,5.3255,1570.4,1570.1,0.34745464]
[1744379993189,5.3255,1570.4,1569.9,0.34745464]
[1744379993578,5.3255,1570.4,1570.0,0.2460925]
[1744379993774,0.53255,1570.3,1570.0,0.2460925]
[1744379994096,0.53255,1570.3,1569.6,3.59863073]
[1744379994302,5.3255,1570.4,1569.7,0.30980222]
[1744379994500,5.3255,1570.4,1569.7,0.24611084]
[1744379994873,6.59863073,1570.3,1569.8,0.5947717]
[1744379995363,3.59863073,1569.9,1569.8,0.34866086]
[1744379995718,12.43363073,1569.9,1569.0,3.34866086]
[1744379996063,12.43363073,1569.9,1569.1,0.24632431]
[1744379996466,8.835,1569.9,1569.2,0.34866086]
[1744379996801,8.835,1569.9,1569.3,0.24632431]
[1744379996997,0.8835,1569.8,1569.4,0.24632431]
[1744379997201,8.835,1569.9,1569.4,0.24632431]
[1744379997596,8.835,1569.9,1569.5,0.65869305]
[1744379997766,8.835,1569.9,1569.5,0.59498517]
[1744379997971,8.835,1569.9,1569.6,0.24632431]
[1744379998194,6.62255,1570.3,1569.6,0.24632431]
[1744379998386,5.3255,1570.4,1569.6,0.24632431]
[1744379998387,3.59863073,1570.2,1569.6,0.24632431]
[1744379998587,3.0,1570.3,1569.2,3.59863073]
[1744379999179,3.59863073,1570.2,1569.3,0.59447381]
[1744379999379,3.0,1569.7,1569.3,0.59447381]
[1744379999678,12.43363073,1569.6,1569.3,0.59447381]
[1744379999883,1.24336307,1569.5,1568.6,3.59863073]
[1744380000212,1.24336307,1569.5,1568.7,3.0]
[1744380000397,1.24336307,1569.5,1567.8,7.60100045]
[1744380000398,12.74941,1568.7,1567.8,7.60100045]
[1744380000594,12.74941,1568.7,1567.8,1.23500045]
[1744380000813,3.59863073,1567.9,1567.1,14.43927399]
[1744380001031,6.37958,1567.5,1566.6,16.81381952]
[1744380001318,0.2,1566.6,1565.7,20.91381621]
[1744380001469,0.2,1565.4,1564.8,3.18695859]
[1744380001669,0.2,1565.0,1564.5,24.248866]
[1744380001974,7.048755,1565.0,1564.5,24.248866]
[1744380002187,6.39059,1564.8,1564.5,24.248866]
[1744380002381,0.658945,1565.0,1564.5,24.248866]
[1744380002583,8.843,1564.9,1563.7,0.2]
[1744380002796,0.55,1565.0,1563.1,0.05]
[1744380003000,6.38895,1565.2,1563.7,0.2]
[1744380003198,6.00550894,1565.2,1564.1,0.2]
[1744380003510,14.17445036,1565.3,1564.8,0.2]
[1744380003672,0.39281846,1565.3,1564.6,0.2]
[1744380003872,0.39281846,1565.3,1564.8,3.2]
[1744380004382,0.39281846,1565.3,1564.7,9.225]
[1744380004580,18.77162752,1565.4,1564.9,0.55]
[1744380004805,33.06308946,1565.2,1564.9,0.2]
[1744380005009,33.06308946,1565.2,1564.9,0.55]
[1744380005275,33.06308946,1565.2,1564.3,6.39249]
[1744380005276,33.06308946,1565.2,1562.7,3.17115581]
[1744380005478,0.2,1563.2,1561.6,6.40357]
[1744380005676,0.2,1563.2,1560.1,0.05]
[1744380005677,14.142,1563.1,1562.2,0.18095117]
[1744380005917,49.726,1563.2,1560.1,0.05]
[1744380005918,1.48001164,1562.0,1560.1,0.05]
[1744380006085,1.23417425,1561.9,1560.1,0.05]
[1744380006275,0.55,1561.5,1560.1,0.05]
[1744380006471,0.2,1560.9,1560.1,0.05]
[1744380006672,0.63015005,1560.8,1560.1,0.05]
[1744380006903,0.08015005,1560.8,1560.1,0.05]
[1744380007107,0.11637797,1560.7,1560.1,0.05]
[1744380007487,3.29975249,1560.6,1560.1,0.05]
[1744380007793,6.41051,1560.0,1559.6,4.48]
[1744380008000,6.40902,1560.3,1558.0,6.41833]
[1744380008001,0.2,1559.7,1558.0,6.41833]
[1744380008198,0.2,1559.2,1557.4,0.5156642]
[1744380008414,0.2,1558.7,1557.8,49.795]
[1744380008579,3.21811076,1559.7,1557.8,56.91716646]
[1744380008771,0.11637797,1559.6,1558.2,0.70305646]
[1744380008983,0.04762319,1559.5,1558.3,7.09608349]
[1744380009213,3.27299073,1561.3,1558.9,6.41445]
[1744380009378,3.25679106,1560.4,1559.1,6.61395]
[1744380009585,3.25679106,1560.4,1559.4,6.41262]
[1744380009780,3.32092015,1560.4,1559.5,0.641262]
[1744380010098,3.28143594,1560.4,1559.9,6.41046]
[1744380010301,3.28880142,1561.9,1560.4,6.40861]
[1744380010508,0.05,1561.4,1560.5,50.49991417]
[1744380010806,22.38811924,1561.1,1560.5,50.435861]
[1744380011009,22.38811924,1561.1,1560.2,6.40928]
[1744380011309,22.38811924,1561.1,1560.1,0.04469552]
[1744380011310,1.48001493,1561.0,1560.1,0.04469552]
[1744380011497,1.48001493,1561.0,1559.6,49.842]
[1744380011698,1.48001493,1561.0,1559.7,4.9842]
[1744380011699,0.15530448,1560.7,1559.7,4.9842]
[1744380011881,0.15530448,1560.1,1559.7,4.9842]
[1744380012081,1.48001493,1561.0,1559.6,49.842]
[1744380012309,1.48001493,1561.0,1559.7,0.06409946]
[1744380012475,1.48001493,1561.0,1559.6,49.842]
[1744380012809,1.48001493,1561.0,1559.6,6.4119]
[1744380012977,1.48001493,1561.0,1560.0,6.41007]
[1744380013184,1.48001493,1561.0,1560.0,6.41025]
[1744380013595,1.48001493,1561.0,1559.9,49.842]
[1744380014313,1.48001493,1561.0,1559.5,0.641262]
[1744380014523,9.86913495,1560.9,1558.1,49.928]
[1744380014719,6.40864,1560.4,1558.2,6.41766]
[1744380015015,6.40831,1560.5,1558.5,6.41632]
[1744380015179,6.40831,1560.5,1558.4,6.41683]
[1744380015385,1.48001493,1561.0,1559.4,6.4127]
[1744380015619,1.48001493,1561.0,1560.3,6.40863]
[1744380015819,7.18655908,1561.1,1560.9,6.40656]
[1744380015991,6.37e-06,1561.4,1561.0,49.878]
[1744380016180,9.88151873,1561.5,1561.1,8.696932]
[1744380016181,6e-06,1561.5,1561.1,8.696932]
[1744380016399,7.22909856,1561.6,1561.3,6.40478]
[1744380016603,0.33245447,1563.1,1561.4,2.334426]
[1744380016604,12.61165821,1561.8,1561.4,2.334426]
[1744380016905,12.61165821,1561.8,1561.3,3.0]
[1744380017230,6.39974,1562.6,1561.2,3.0]
[1744380017428,56.288,1562.8,1560.2,49.889]
[1744380017631,6.40371,1561.6,1559.5,1.62959139]
[1744380017823,0.55,1561.1,1559.4,6.41257]
[1744380018021,0.55,1561.1,1559.8,6.4108]
[1744380018333,0.55,1561.1,1559.3,6.41313]
[1744380018334,0.55,1561.2,1559.9,0.12534151]
[1744380018507,0.55,1561.2,1559.4,0.47388895]
[1744380018508,3.0,1561.6,1560.0,0.06408184]
[1744380018707,0.55,1561.5,1560.1,3.12705692]
[1744380018906,6.4045,1561.4,1559.3,6.4129]
[1744380019120,3.55,1561.3,1559.5,6.41231]
[1744380019322,6.4071,1560.8,1558.6,49.889]
[1744380019500,6.40537,1561.2,1559.2,6.41354]
[1744380019700,3.0,1561.1,1559.2,6.41354]
[1744380019906,0.55,1561.4,1559.4,6.41272]
[1744380020119,0.55,1561.4,1559.7,3.55]
[1744380020312,3.55,1561.6,1559.9,3.0]
[1744380020514,3.55,1561.6,1559.7,6.96142]
[1744380020718,3.0,1561.6,1559.9,6.41041]
[1744380021010,3.0,1561.6,1560.0,0.641041]
[1744380021210,0.2,1562.3,1560.1,0.06407721]
[1744380021424,0.2,1562.2,1559.7,6.41134]
[1744380021743,0.11086403,1562.1,1559.8,0.06409]
[1744380022040,6.40456,1561.4,1559.2,6.4134]
[1744380022210,3.0,1561.5,1559.5,6.41231]
[1744380022409,3.0,1561.3,1559.6,0.641231]
[1744380022645,3.55,1560.9,1559.3,0.641354]
[1744380022910,6.40425,1561.5,1559.3,0.641354]
[1744380022911,6.4025,1561.9,1559.3,0.641354]
[1744380023110,6.40163,1562.1,1559.5,6.9623]
[1744380023322,6.40091,1562.3,1560.3,6.40902]
[1744380023525,0.05,1562.4,1560.4,3.0]
[1744380023936,6.4506,1562.4,1560.2,3.55]
[1744380024147,0.06405862,1562.3,1561.0,6.40578]
[1744380024344,0.06405862,1562.3,1560.8,6.40668]
[1744380024345,0.06405862,1562.3,1561.3,6.40453]
[1744380024508,0.05,1562.4,1561.5,6.40392]
[1744380024714,0.05,1562.4,1561.3,6.40453]
[1744380025240,0.05,1562.4,1561.4,0.06402212]
[1744380025441,0.05,1562.4,1561.3,6.40476]
[1744380025643,0.05,1562.4,1561.0,6.4061]
[1744380025810,0.05,1562.4,1561.2,6.40517]
[1744380026016,0.05,1562.4,1561.3,0.06402979]
[1744380026214,0.05,1562.4,1561.2,6.40515]
[1744380026215,0.05,1562.4,1561.2,6.40532]
[1744380026634,0.05,1562.4,1560.9,56.32941]
[1744380026835,0.05,1562.4,1561.0,5.632941]
[1744380027015,0.55,1562.2,1560.9,6.40633]
[1744380027334,0.06405862,1562.1,1561.1,6.40553]
[1744380027620,0.55,1562.3,1561.0,0.06403225]
[1744380027841,0.06405862,1562.2,1560.7,6.40711]
[1744380028045,0.06405862,1562.2,1560.0,49.919]
[1744380028247,0.42546448,1562.2,1560.1,11.40174]
[1744380028448,0.55,1562.1,1560.4,6.40858]
[1744380028755,0.06405862,1562.0,1560.4,6.40858]
[1744380028981,0.06405862,1562.0,1560.6,6.40772]
[1744380029475,0.06405862,1562.0,1559.8,0.48938723]
[1744380029476,0.06405862,1562.0,1560.3,6.4089]
[1744380029675,0.06405862,1562.0,1560.8,6.40674]
[1744380029853,0.06405862,1562.1,1561.0,6.40614]
[1744380030238,0.06405862,1562.3,1561.0,6.40614]
[1744380030547,0.06405862,1562.3,1561.2,6.40532]
[1744380030750,0.06405862,1562.3,1561.5,3.0]
[1744380030943,0.05,1562.4,1561.4,6.4045]
[1744380031266,0.05,1562.4,1561.6,6.40345]
[1744380031554,0.05,1562.4,1561.5,0.64045]
[1744380031731,0.05,1562.4,1561.8,6.40265]
[1744380032262,0.05,1562.4,1561.7,6.40327]
[1744380032449,0.05,1562.4,1561.7,6.40305]
[1744380032650,0.05,1562.4,1561.3,6.4046]
[1744380032848,0.05,1562.4,1561.7,12.80611]
[1744380033029,0.05,1562.4,1561.8,1.280611]
[1744380033229,0.05,1562.4,1561.7,6.40286]
[1744380033430,0.05,1562.4,1561.9,12.80449]
[1744380033746,0.05,1562.4,1561.8,6.40286]
[1744380033930,0.05,1562.4,1562.1,6.40135]
[1744380034130,0.05,1562.4,1562.2,0.06399667]
[1744380034376,0.05,1562.4,1562.0,3.0]
[1744380034580,0.05,1562.4,1562.0,4.580468]
[1744380034775,0.05,1562.4,1562.1,12.80326]
[1744380034938,0.05,1562.4,1562.1,6.46562667]
[1744380035145,0.05,1562.4,1562.1,6.40163]
[1744380035459,0.05,1562.4,1561.3,6.4049]
[1744380035666,1.13862308,1562.3,1561.4,0.64049]
[1744380035830,0.06405862,1562.2,1561.5,6.46811436]
[1744380036033,0.55,1562.2,1561.4,0.64049]
[1744380036348,0.65299127,1562.1,1561.4,0.64049]
[1744380036751,0.65299127,1562.1,1561.0,3.2319618]
[1744380037066,0.55,1561.9,1560.9,0.640674]
[1744380037238,0.55,1561.7,1560.7,6.40718]
[1744380037439,0.06405862,1561.8,1560.8,6.40697]
[1744380037440,0.58893265,1561.6,1560.8,6.40697]
[1744380037630,0.58893265,1561.6,1561.0,6.40595]
[1744380037838,0.06405862,1562.1,1561.4,6.40413]
[1744380038046,49.963,1563.4,1561.4,6.40413]
[1744380038047,0.06405862,1563.2,1561.9,6.40219]
[1744380038368,0.59064387,1562.3,1561.8,0.06400285]
[1744380038677,0.59064387,1562.3,1561.9,6.40209]
[1744380038979,0.55,1562.6,1561.0,6.40598]
[1744380039135,0.55,1562.1,1561.0,6.40598]
[1744380039473,0.55,1561.9,1560.0,6.40985]
[1744380039671,0.55,1561.7,1560.8,6.40678]
[1744380039869,0.41880882,1561.8,1561.0,6.40589]
[1744380040031,0.3547502,1561.8,1560.8,6.89539607]
[1744380040231,0.3547502,1561.8,1561.3,6.40468]
[1744380040431,0.05,1562.4,1561.4,3.640468]
[1744380040432,0.11405862,1562.4,1561.4,3.640468]
[1744380040754,0.59101895,1562.3,1561.4,3.640468]
[1744380040954,0.06405862,1562.2,1561.5,6.40409]
[1744380041557,0.61405862,1562.2,1560.8,6.87595893]
[1744380041889,0.59101895,1562.1,1561.2,12.81035]
[1744380042090,0.06405862,1562.0,1561.2,6.40503]
[1744380042393,0.59101895,1562.1,1561.2,6.40503]
[1744380042543,0.59101895,1562.1,1561.2,12.81035]
[1744380042891,0.49101895,1562.1,1561.6,6.40347]
[1744380043051,0.49101895,1562.1,1561.7,0.640347]
[1744380043251,0.05,1562.4,1561.4,6.40421]
[1744380043450,0.05,1562.4,1561.2,6.40503]
[1744380043659,0.06405862,1562.3,1561.4,6.40421]
[1744380043874,0.05,1562.4,1561.4,6.40421]
[1744380044081,0.05,1562.4,1562.1,6.40153]
[1744380044284,0.05,1562.4,1562.1,0.640153]
[1744380044491,0.05,1562.4,1562.0,0.06400059]
[1744380044655,0.05,1562.4,1561.9,6.40245]
[1744380044855,0.05,1562.4,1561.6,3.0]
[1744380045083,0.05,1562.4,1561.9,6.40209]
[1744380045284,0.05,1562.4,1562.0,6.40204]
[1744380045492,0.05,1562.4,1561.5,6.40399]
[1744380045661,0.05,1562.4,1561.6,3.0]
[1744380045869,0.05,1562.4,1561.7,6.40327]
[1744380046064,0.05,1562.4,1561.6,3.0]
[1744380046272,0.05,1562.4,1561.1,49.919]
[1744380046476,0.55,1562.2,1561.2,12.037433]
[1744380046676,0.06405862,1562.1,1561.2,5.632403]
[1744380046999,0.55,1562.0,1561.1,56.32449]
[1744380047168,0.05,1562.4,1561.1,56.32449]
[1744380047169,0.55,1562.3,1561.3,6.4046]
[1744380047369,0.06405862,1562.2,1561.2,6.40532]
[1744380047773,0.06405862,1562.2,1561.3,3.0]
[1744380048076,0.06405862,1562.2,1561.4,6.4045]
[1744380048276,0.55,1562.3,1561.3,3.0]
[1744380048478,0.35513572,1562.2,1561.2,3.0]
[1744380048694,0.55,1562.0,1560.9,7.09392589]
[1744380048901,0.55,1562.1,1561.1,6.40535]
[1744380049068,0.06405862,1562.0,1561.2,3.0]
[1744380049396,0.06405862,1562.0,1561.2,0.940535]
[1744380049600,0.55,1562.1,1561.0,3.0]
[1744380049797,0.06405862,1562.0,1561.1,0.06404109]
[1744380049997,0.06405862,1562.0,1560.9,7.09380589]
[1744380050579,0.55,1561.8,1560.9,7.09380589]
[1744380050780,0.06405862,1561.7,1560.9,7.09391589]
[1744380050975,0.06405862,1561.7,1561.0,0.70939159]
[1744380051507,0.06405862,1561.8,1561.1,6.40573]
[1744380051713,1.5294,1561.8,1561.1,6.40573]
[1744380052005,1.5294,1561.8,1561.0,3.70939159]
[1744380052217,0.06405862,1561.7,1561.1,6.40573]
[1744380052394,1.5294,1561.8,1561.0,3.70939159]
[1744380052599,0.06405862,1561.7,1561.1,0.06403735]
[1744380052977,0.06405862,1561.7,1561.0,4.01157116]
[1744380053405,0.06405862,1561.7,1560.8,0.005]
[1744380053611,1.5083,1561.6,1560.8,0.005]
[1744380053807,0.55,1561.4,1560.8,0.005]
[1744380054027,0.06405862,1561.5,1560.8,0.06905371]
[1744380054183,1.5083,1561.6,1560.9,6.40656]
[1744380054383,1.5083,1561.6,1561.0,0.640656]
[1744380054611,1.5083,1561.6,1561.1,0.06404294]
[1744380054793,1.5083,1561.6,1560.8,0.005]
[1744380054989,1.5083,1561.6,1560.9,6.40656]
[1744380055194,1.5083,1561.6,1560.8,0.005]
[1744380055401,1.14494427,1561.5,1560.8,0.005]
[1744380055715,4.20900289,1561.5,1560.8,0.005]
[1744380055915,0.3570168,1561.4,1560.8,0.005]
[1744380056118,2.187,1561.2,1560.8,0.005]
[1744380056414,0.06405862,1561.1,1560.8,0.005]
[1744380057128,0.59494427,1561.0,1560.8,0.005]
[1744380057485,0.06405862,1560.9,1560.8,0.005]
[1744380057685,1.625,1560.7,1559.4,6.41263]
[1744380057885,1.625,1560.7,1559.5,0.641263]
[1744380057886,0.55,1560.4,1559.5,0.641263]
[1744380058115,0.61405862,1560.4,1559.5,0.641263]
[1744380058289,0.61405862,1560.4,1559.5,3.641263]
[1744380058482,0.61405862,1560.4,1559.8,6.41071]
[1744380058688,0.61405862,1560.4,1559.8,6.41107]
[1744380058881,0.61405862,1560.4,1559.9,6.41053]
[1744380059082,0.61405862,1560.4,1559.5,0.641263]
[1744380059083,6.40921,1560.3,1559.5,0.641263]
[1744380059392,1.625,1560.1,1559.4,6.41272]
[1744380059604,0.06405862,1560.0,1559.8,6.41083]
[1744380059913,0.06405862,1560.0,1559.3,6.41313]
[1744380059914,1.625,1560.1,1560.0,6.41025]
[1744380060313,6.40273,1561.9,1560.5,6.4082]
[1744380060514,0.06405862,1561.4,1560.5,6.40818]
[1744380060715,0.06405862,1561.4,1560.8,6.40694]
[1744380060885,0.06405862,1561.6,1560.7,3.0]
[1744380061081,6.40282,1561.9,1561.2,6.40506]
[1744380061310,0.06405862,1561.8,1561.3,0.06405522]
[1744380061491,0.35560786,1561.8,1561.6,6.4035]
[1744380061692,6.4023,1562.0,1561.4,6.40446]
[1744380061988,0.70428862,1561.9,1561.7,6.40303]
[1744380062315,0.06405862,1561.9,1561.3,6.40491]
[1744380062491,0.06405862,1562.2,1560.8,1.6017]
[1744380062697,2.51e-06,1561.8,1561.7,9.40327]
[1744380062885,5.89e-06,1562.1,1562.0,9.40204]
[1744380063084,5.89e-06,1562.1,1562.0,9.4557491]
[1744380063308,5.89e-06,1562.1,1562.0,7.97755149]
[1744380063309,16.09875927,1562.1,1562.0,7.97755149]
[1744380063526,16.09875927,1562.1,1562.0,6.39174758]
[1744380063693,16.09875927,1562.1,1561.4,6.40432]
[1744380063896,16.09875927,1562.1,1561.3,3.0]
[1744380063897,16.09875927,1562.1,1561.6,6.40341]
[1744380064098,0.06405862,1562.0,1561.6,6.40357]
[1744380064303,16.09875927,1562.1,1561.9,6.40245]
[1744380064609,16.09875927,1562.1,1561.6,3.0]
[1744380064794,16.09875927,1562.1,1561.8,6.40266]
[1744380064996,1.625,1561.9,1560.8,8.47856719]
[1744380065225,1.625,1561.9,1561.7,6.40307]
[1744380065525,1.625,1561.9,1561.8,6.40286]
[1744380066287,16.09875927,1562.1,1561.9,6.4021]
[1744380066510,16.09875927,1562.1,1562.0,6.40204]
[1744380066716,16.09875338,1562.1,1562.0,6.40204]
[1744380067214,16.09875338,1562.1,1562.0,7.682454]
[1744380067744,16.09875338,1562.1,1561.9,6.4021]
[1744380068243,16.09875338,1562.1,1562.0,6.40204]
[1744380068945,16.09875338,1562.1,1561.8,6.40285]
[1744380069136,16.09875338,1562.1,1561.8,6.40259]
[1744380069337,1.68905862,1562.0,1561.4,6.40424]
[1744380069540,1.68905862,1562.0,1561.5,6.40408]
[1744380069844,1.625,1562.0,1561.8,12.80539]
[1744380070048,16.09875338,1562.1,1562.0,6.40204]
[1744380070548,3.38e-06,1562.1,1562.0,9.40204]
[1744380070850,1.62e-06,1562.4,1562.3,9.40081]
[1744380071525,1.62e-06,1562.4,1562.3,9.87127872]
[1744380071843,21.9851881,1563.0,1562.6,6.39959]
[1744380072051,21.9851881,1563.0,1562.3,1.62723187]
[1744380072250,21.9851881,1563.0,1562.6,6.39959]
[1744380072448,21.9851881,1563.0,1562.2,6.40093]
[1744380072623,21.9851881,1563.0,1562.6,6.39959]
[1744380072829,20.3601881,1563.0,1562.6,6.39959]
[1744380073021,20.3601881,1563.0,1562.6,9.39959]
[1744380073657,20.3601881,1563.0,1562.6,6.39959]
[1744380074152,20.3601881,1563.0,1562.5,6.39981]
[1744380074647,20.3601881,1563.0,1562.6,6.39959]
[1744380075024,20.3601881,1563.0,1562.5,6.3998]
[1744380075219,20.3601881,1563.0,1562.5,12.79962]
[1744380075547,20.3601881,1563.0,1562.5,6.3998]
[1744380075851,20.47420986,1562.7,1562.3,6.40064]
[1744380076069,20.47420986,1562.7,1561.9,11.61272677]
[1744380076070,20.47420986,1562.7,1562.0,3.0]
[1744380076218,18.93970986,1562.7,1562.6,6.39959]
[1744380076623,18.88970986,1562.7,1562.6,6.39959]
[1744380076825,18.88970986,1562.7,1562.6,8.319509]
[1744380077444,18.88970986,1562.7,1562.6,6.39959]
[1744380077928,18.88970986,1562.7,1562.5,6.3998]
[1744380078132,18.88970986,1562.7,1562.4,6.40029]
[1744380078329,18.88970986,1562.7,1562.0,1.6207]
[1744380078534,18.88970986,1562.7,1562.6,6.39959]
[1744380079148,18.88970986,1562.7,1562.6,11.319509]
[1744380079949,18.88970986,1562.7,1562.6,6.39959]
[1744380080351,29.83477796,1563.3,1562.9,9.39836]
[1744380080574,29.83477796,1563.3,1563.2,6.39713]
[1744380080977,29.83477796,1563.3,1562.9,9.39804]
[1744380081144,29.83477796,1563.3,1563.2,6.39713]
[1744380082082,29.83477796,1563.3,1563.1,6.39735]
[1744380082277,29.83477796,1563.3,1563.1,12.79476]
[1744380082454,29.83477796,1563.3,1563.1,12.79474]
[1744380082655,29.83477796,1563.3,1562.5,6.39967]
[1744380082854,29.83477796,1563.3,1562.9,6.39815]
[1744380083054,29.83477796,1563.3,1562.6,6.39944]
[1744380083263,29.83477796,1563.3,1562.8,6.3986]
[1744380083461,29.83477796,1563.3,1562.8,12.79736]
[1744380083779,29.83477796,1563.3,1562.7,3.0]
[1744380083780,29.83477796,1563.3,1562.7,9.39916]
[1744380083970,29.83477796,1563.3,1563.0,6.39793]
[1744380084580,29.83477796,1563.3,1562.7,3.0]
[1744380084878,1.59855862,1563.2,1562.3,49.896]
[1744380085066,1.5345,1563.2,1562.3,56.2968]
[1744380085279,0.55,1563.1,1562.4,2.09657152]
[1744380085447,0.06405862,1563.0,1562.3,49.896]
[1744380085650,6.94851,1562.9,1562.3,49.896]
[1744380085875,0.06405862,1562.9,1562.3,12.030512]
[1744380086108,1.5345,1562.9,1561.8,6.40286]
[1744380086252,1.5345,1562.5,1561.9,6.40225]
[1744380086452,1.5345,1562.5,1562.1,6.4013]
[1744380086655,1.5345,1562.5,1562.0,6.40196]
[1744380087184,1.5345,1562.5,1562.3,4.73871423]
[1744380087358,1.59855862,1562.5,1562.3,4.73871423]
[1744380087563,1.5345,1562.5,1562.3,4.73871423]
[1744380089060,6.9504,1562.4,1562.3,4.73871423]
[1744380089259,0.06405862,1562.4,1562.3,4.73871423]
[1744380089485,7.01445862,1562.4,1562.3,4.73871423]
[1744380089686,0.61405862,1562.4,1562.3,4.73871423]
[1744380089980,7.86931648,1562.4,1562.3,4.73871423]
[1744380090184,7.86931648,1562.4,1562.3,2.81361157]
[1744380090185,10.01445862,1562.4,1562.3,2.81361157]
[1744380090359,2.14855862,1562.4,1561.9,6.15909166]
[1744380090686,8.54897862,1562.4,1561.9,6.15909166]
[1744380091088,14.94962862,1562.4,1561.9,6.15909166]
[1744380091254,14.88557,1562.4,1561.9,6.15909166]
[1744380091589,6.40145,1562.2,1561.5,7.044348]
[1744380091790,0.55,1562.2,1561.5,0.640408]
[1744380091960,0.55,1561.8,1561.0,6.34360399]
[1744380092161,0.55,1561.8,1561.0,11.12872399]
[1744380092162,1.5345,1561.6,1561.0,11.12872399]
[1744380092384,1.5345,1561.6,1561.0,4.72290399]
[1744380092894,7.93837,1561.6,1561.0,4.72290399]
[1744380093091,6.46841862,1561.5,1561.0,4.72290399]
[1744380093304,0.55,1561.4,1561.0,4.72290399]
[1744380093460,2.0845,1561.1,1561.0,4.72290399]
[1744380093663,1.59855862,1561.1,1561.0,4.72290399]
[1744380093860,2.0845,1561.1,1561.0,4.72290399]
[1744380094092,8.49023,1561.1,1561.0,4.72290399]
[1744380094593,8.55428862,1561.1,1561.0,4.72290399]
[1744380094780,11.55428862,1561.1,1561.0,3.05630399]
[1744380095093,10.04386162,1561.1,1561.0,3.05630399]
[1744380095304,6.40738,1560.7,1560.6,6.15909166]
[1744380095494,7.02143862,1560.7,1560.6,6.15909166]
[1744380095862,6.95829,1560.5,1560.2,0.005]
[1744380096090,0.06405862,1560.4,1560.2,0.005]
[1744380096465,0.96175862,1560.4,1560.2,0.005]
[1744380096667,0.8977,1560.4,1560.2,0.0690924]
[1744380096879,6.95746,1560.7,1560.2,0.0690924]
[1744380096880,7.36941862,1560.7,1560.2,0.0690924]
[1744380097202,0.8977,1560.7,1560.2,6.41415]
[1744380097406,0.8977,1560.7,1560.3,0.641415]
[1744380097703,0.8977,1560.7,1560.2,6.41415]
[1744380097704,0.96175862,1560.7,1560.2,0.005]
[1744380097902,7.30513,1560.7,1560.2,0.005]
[1744380098202,0.8977,1560.7,1560.2,0.005]
[1744380098375,0.8977,1560.7,1560.3,6.40887]
[1744380098574,0.8977,1560.7,1560.3,6.40886]
[1744380098774,0.8977,1560.7,1560.2,0.005]
[1744380098995,6.40822,1560.5,1560.2,0.005]
[1744380099169,0.06405862,1560.4,1560.2,0.005]
[1744380099373,6.47253862,1560.5,1560.2,0.005]
[1744380099801,6.95882,1560.4,1560.2,0.005]
[1744380100076,7.92077862,1560.3,1560.2,0.005]
[1744380100670,10.92077862,1560.3,1560.2,0.005]
[1744380100877,12.65375548,1560.3,1560.2,0.005]
[1744380102473,10.92077862,1560.3,1560.2,0.005]
[1744380102676,6.41107,1559.8,1559.7,0.0316318]
[1744380102910,6.41354,1559.2,1559.1,0.05]
[1744380103271,10.02759862,1559.2,1559.1,0.05]
[1744380103684,10.92029862,1559.2,1559.1,0.05]
[1744380103894,6.41512,1558.9,1558.7,0.55]
[1744380104095,0.61405862,1558.8,1558.7,0.55]
[1744380104298,0.55,1558.7,1558.4,6.15909166]
[1744380104498,0.06405862,1558.6,1558.4,6.15909166]
[1744380104823,6.96642,1558.5,1558.4,6.15909166]
[1744380105196,10.30912,1558.5,1558.4,6.15909166]
[1744380105520,26.481633,1558.5,1558.4,6.15909166]
[1744380106236,6.41972,1557.7,1557.6,6.11841192]
[1744380106525,10.611692,1557.7,1557.6,2.11851192]
[1744380106683,10.03377862,1557.7,1557.6,2.11851192]
[1744380106884,9.69655,1557.4,1557.3,7.69033372]
[1744380107198,10.10330862,1557.4,1557.3,3.69043372]
[1744380107397,0.40675862,1557.4,1557.3,3.69043372]
[1744380107597,6.82770862,1557.4,1557.3,3.69043372]
[1744380107820,0.40175862,1557.4,1557.3,3.69043372]
[1744380108117,0.3427,1557.4,1557.3,3.69043372]
[1744380108326,0.40175862,1557.4,1557.3,3.69043372]
[1744380108506,0.3427,1557.4,1557.3,3.69043372]
[1744380108694,0.05905862,1557.6,1557.3,4.95965203]
[1744380108887,14.5,1557.7,1557.3,10.11153372]
[1744380109091,14.5,1557.7,1557.3,10.11164372]
[1744380109384,6.47943862,1557.6,1557.3,3.64043372]
[1744380109585,6.47920862,1557.6,1557.3,3.64043372]
[1744380109793,6.42077,1557.5,1557.3,3.64043372]
[1744380110094,6.82270862,1557.4,1557.3,3.64043372]
[1744380110299,9.82270862,1557.4,1557.3,3.64043372]
[1744380110498,6.82270862,1557.4,1557.3,3.64043372]
[1744380110696,0.40175862,1557.4,1557.3,3.64043372]
[1744380110896,14.90175862,1557.4,1557.3,3.64043372]
[1744380111193,14.8427,1557.4,1557.3,3.64043372]
[1744380111639,21.26365,1557.4,1557.3,3.64043372]
[1744380111795,14.8427,1557.4,1557.3,3.64043372]
[1744380112137,14.8427,1557.4,1557.1,0.6]
[1744380112338,6.48069862,1557.3,1557.1,0.6]
[1744380112507,0.05905862,1557.3,1557.1,0.6]
[1744380112832,14.5,1557.4,1557.1,0.6]
[1744380113033,0.05905862,1557.3,1557.1,0.6]
[1744380113352,6.76448,1557.2,1557.1,0.6]
[1744380113654,6.7686,1556.2,1556.1,0.05]
[1744380113803,21.2686,1556.2,1556.1,0.05]
[1744380114849,14.8427,1556.2,1556.1,0.05]
[1744380115534,14.5,1556.2,1556.1,6.47632]
[1744380116316,14.5,1556.2,1556.1,0.11424976]